Workbook

Sheet Zinsstaffel
D1: Schweizer/Deutsche Usanz (30/360) | E1: =IF(LEFT(Zinsusanzwahl,4)="Schw","CH",IF(LEFT(Zinsusanzwahl,4)="Inte","FR","EN")) -> CH | F1: =IF(OR(Zinsusanz="CH",Zinsusanz="FR"),360,365) -> 360 | G1: aktiv | L1: TRUE | N1: Schweizer/Deutsche Usanz (30/360) | O1: aktiv
A2: Musterfirma GmbH | L2: Zinsberechnung | N2: Internationale/französiche Usanz (echt/360) | O2: passiv
N3: Englische Usanz (echt/echt)
A4: Konto | C4: 2220 KK Peter Huber | I4: 0=nicht rechn. | K4: von | L4: 2014-01-01
A5: Zinssatz Soll | C5: 0.015 | I5: 1=normal | K5: bis | L5: 2014-12-31
A6: Zinssatz Haben | C6: 0.0375 | I6: 2=letzte Zeile | K6: Tage | L6: =L5+1-L4 -> 365
A8: Datum | B8: Valuta | C8: Beleg | D8: Buchungstext | E8: G-Kto. | F8: Soll | G8: Haben | H8: Saldo | J8: hat Schalttag | K8: Anz. Tg. | L8: Zinsen
B9: =von-1 -> 2013-12-31 | D9: Saldovortrag | H9: 50000 | I9: =IF(B9=B10,0,IF(ISBLANK(B10),2,1)) -> 1 | J9: =IF(AND(Zinsusanz="EN",I9<>0),IF(hatSchalttag(B9,IF(I9=2,bis,B10)),1,0),0) -> 0 | K9: =IF(I9=1,IF(Zinsusanz="CH",DAYS360(B9,B10,TRUE),B10-B9),IF(I9=2,IF(Zinsusanz="CH",DAYS360(B9,bis,TRUE),bis-B9),"")) -> 38 | L9: =IF(K9="","",H9*K9*IF(Kontotyp="aktiv",IF(H9>=0,p_soll,p_haben),IF(H9>=0,p_haben,p_soll))/(Zinsbasis+J9)) -> 79.16666667
A10: 2014-02-08 | B10: 2014-02-08 | D10: Einbuchung | F10: 4500 | H10: =IF(NOT(ISBLANK(B10)),H9+IF(Kontotyp="aktiv",+F10-G10,-F10+G10),"") -> 54500 | I10: 1 | J10: =IF(AND(Zinsusanz="EN",I10<>0),IF(hatSchalttag(B10,IF(I10=2,bis,B11)),1,0),0) -> 0 | K10: 233 | L10: 529.1041667
A11: 2014-09-30 | B11: 2014-10-01 | D11: Belastung | G11: 14500 | H11: 40000 | I11: 2 | J11: =IF(AND(Zinsusanz="EN",I11<>0),IF(hatSchalttag(B11,IF(I11=2,bis,B12)),1,0),0) -> 0 | K11: 89 | L11: 148.3333333
I12: 0 | J12: =IF(AND(Zinsusanz="EN",I12<>0),IF(hatSchalttag(B12,IF(I12=2,bis,B13)),1,0),0) -> 0
I13: 0 | J13: =IF(AND(Zinsusanz="EN",I13<>0),IF(hatSchalttag(B13,IF(I13=2,bis,B14)),1,0),0) -> 0
I14: 0 | J14: =IF(AND(Zinsusanz="EN",I14<>0),IF(hatSchalttag(B14,IF(I14=2,bis,B15)),1,0),0) -> 0
I15: 0 | J15: =IF(AND(Zinsusanz="EN",I15<>0),IF(hatSchalttag(B15,IF(I15=2,bis,B16)),1,0),0) -> 0
I16: 0 | J16: =IF(AND(Zinsusanz="EN",I16<>0),IF(hatSchalttag(B16,IF(I16=2,bis,B17)),1,0),0) -> 0
I17: 0 | J17: =IF(AND(Zinsusanz="EN",I17<>0),IF(hatSchalttag(B17,IF(I17=2,bis,B18)),1,0),0) -> 0
I18: 0 | J18: =IF(AND(Zinsusanz="EN",I18<>0),IF(hatSchalttag(B18,IF(I18=2,bis,B19)),1,0),0) -> 0
I19: 0 | J19: =IF(AND(Zinsusanz="EN",I19<>0),IF(hatSchalttag(B19,IF(I19=2,bis,B20)),1,0),0) -> 0
I20: 0 | J20: =IF(AND(Zinsusanz="EN",I20<>0),IF(hatSchalttag(B20,IF(I20=2,bis,B21)),1,0),0) -> 0
I21: 0 | J21: =IF(AND(Zinsusanz="EN",I21<>0),IF(hatSchalttag(B21,IF(I21=2,bis,B22)),1,0),0) -> 0
I22: 0 | J22: =IF(AND(Zinsusanz="EN",I22<>0),IF(hatSchalttag(B22,IF(I22=2,bis,B23)),1,0),0) -> 0
I23: 0 | J23: =IF(AND(Zinsusanz="EN",I23<>0),IF(hatSchalttag(B23,IF(I23=2,bis,B24)),1,0),0) -> 0
I24: 0 | J24: =IF(AND(Zinsusanz="EN",I24<>0),IF(hatSchalttag(B24,IF(I24=2,bis,B25)),1,0),0) -> 0
I25: 0 | J25: =IF(AND(Zinsusanz="EN",I25<>0),IF(hatSchalttag(B25,IF(I25=2,bis,B26)),1,0),0) -> 0
I26: 0 | J26: =IF(AND(Zinsusanz="EN",I26<>0),IF(hatSchalttag(B26,IF(I26=2,bis,B27)),1,0),0) -> 0
I27: 0 | J27: =IF(AND(Zinsusanz="EN",I27<>0),IF(hatSchalttag(B27,IF(I27=2,bis,B28)),1,0),0) -> 0
I28: 0 | J28: =IF(AND(Zinsusanz="EN",I28<>0),IF(hatSchalttag(B28,IF(I28=2,bis,B29)),1,0),0) -> 0
I29: 0 | J29: =IF(AND(Zinsusanz="EN",I29<>0),IF(hatSchalttag(B29,IF(I29=2,bis,B30)),1,0),0) -> 0
I30: 0 | J30: =IF(AND(Zinsusanz="EN",I30<>0),IF(hatSchalttag(B30,IF(I30=2,bis,B31)),1,0),0) -> 0
I31: 0 | J31: =IF(AND(Zinsusanz="EN",I31<>0),IF(hatSchalttag(B31,IF(I31=2,bis,B32)),1,0),0) -> 0
I32: 0 | J32: =IF(AND(Zinsusanz="EN",I32<>0),IF(hatSchalttag(B32,IF(I32=2,bis,B33)),1,0),0) -> 0
I33: 0 | J33: =IF(AND(Zinsusanz="EN",I33<>0),IF(hatSchalttag(B33,IF(I33=2,bis,B34)),1,0),0) -> 0
I34: 0 | J34: =IF(AND(Zinsusanz="EN",I34<>0),IF(hatSchalttag(B34,IF(I34=2,bis,B35)),1,0),0) -> 0
I35: 0 | J35: =IF(AND(Zinsusanz="EN",I35<>0),IF(hatSchalttag(B35,IF(I35=2,bis,B36)),1,0),0) -> 0
I36: 0 | J36: =IF(AND(Zinsusanz="EN",I36<>0),IF(hatSchalttag(B36,IF(I36=2,bis,B37)),1,0),0) -> 0
I37: 0 | J37: =IF(AND(Zinsusanz="EN",I37<>0),IF(hatSchalttag(B37,IF(I37=2,bis,B38)),1,0),0) -> 0
I38: 0 | J38: =IF(AND(Zinsusanz="EN",I38<>0),IF(hatSchalttag(B38,IF(I38=2,bis,B39)),1,0),0) -> 0
I39: 0 | J39: =IF(AND(Zinsusanz="EN",I39<>0),IF(hatSchalttag(B39,IF(I39=2,bis,B40)),1,0),0) -> 0
I40: 0 | J40: =IF(AND(Zinsusanz="EN",I40<>0),IF(hatSchalttag(B40,IF(I40=2,bis,B41)),1,0),0) -> 0
I41: =IF(B41=B42,0,IF(ISBLANK(B42),2,1)) -> 0 | J41: =IF(AND(Zinsusanz="EN",I41<>0),IF(hatSchalttag(B41,IF(I41=2,bis,B42)),1,0),0) -> 0 | K41: =IF(I41=1,IF(Zinsusanz="CH",DAYS360(B41,B42,TRUE),B42-B41),IF(I41=2,IF(Zinsusanz="CH",DAYS360(B41,bis,TRUE),bis-B41),"")) ->  | L41: =IF(K41="","",H41*K41*IF(Kontotyp="aktiv",IF(H41>=0,p_soll,p_haben),IF(H41>=0,p_haben,p_soll))/(Zinsbasis+J41)) -> 
H42: =IF(NOT(ISBLANK(B42)),H41+IF(Kontotyp="aktiv",+F42-G42,-F42+G42),"") ->  | I42: 0 | J42: =IF(AND(Zinsusanz="EN",I42<>0),IF(hatSchalttag(B42,IF(I42=2,bis,B43)),1,0),0) -> 0
I43: 0 | J43: =IF(AND(Zinsusanz="EN",I43<>0),IF(hatSchalttag(B43,IF(I43=2,bis,B44)),1,0),0) -> 0
I44: 0 | J44: =IF(AND(Zinsusanz="EN",I44<>0),IF(hatSchalttag(B44,IF(I44=2,bis,B45)),1,0),0) -> 0
I45: 0 | J45: =IF(AND(Zinsusanz="EN",I45<>0),IF(hatSchalttag(B45,IF(I45=2,bis,B46)),1,0),0) -> 0
I46: 0 | J46: =IF(AND(Zinsusanz="EN",I46<>0),IF(hatSchalttag(B46,IF(I46=2,bis,B47)),1,0),0) -> 0
I47: 0 | J47: =IF(AND(Zinsusanz="EN",I47<>0),IF(hatSchalttag(B47,IF(I47=2,bis,B48)),1,0),0) -> 0
I48: 0 | J48: =IF(AND(Zinsusanz="EN",I48<>0),IF(hatSchalttag(B48,IF(I48=2,bis,B49)),1,0),0) -> 0
I49: 0 | J49: =IF(AND(Zinsusanz="EN",I49<>0),IF(hatSchalttag(B49,IF(I49=2,bis,B50)),1,0),0) -> 0
I50: 0 | J50: =IF(AND(Zinsusanz="EN",I50<>0),IF(hatSchalttag(B50,IF(I50=2,bis,B51)),1,0),0) -> 0
I51: 0 | J51: =IF(AND(Zinsusanz="EN",I51<>0),IF(hatSchalttag(B51,IF(I51=2,bis,B52)),1,0),0) -> 0
I52: 0 | J52: =IF(AND(Zinsusanz="EN",I52<>0),IF(hatSchalttag(B52,IF(I52=2,bis,B53)),1,0),0) -> 0
I53: 0 | J53: =IF(AND(Zinsusanz="EN",I53<>0),IF(hatSchalttag(B53,IF(I53=2,bis,B54)),1,0),0) -> 0
I54: 0 | J54: =IF(AND(Zinsusanz="EN",I54<>0),IF(hatSchalttag(B54,IF(I54=2,bis,B55)),1,0),0) -> 0
I55: 0 | J55: =IF(AND(Zinsusanz="EN",I55<>0),IF(hatSchalttag(B55,IF(I55=2,bis,B56)),1,0),0) -> 0
I56: 0 | J56: =IF(AND(Zinsusanz="EN",I56<>0),IF(hatSchalttag(B56,IF(I56=2,bis,B57)),1,0),0) -> 0
I57: 0 | J57: =IF(AND(Zinsusanz="EN",I57<>0),IF(hatSchalttag(B57,IF(I57=2,bis,B58)),1,0),0) -> 0
I58: =IF(B58=B59,0,IF(ISBLANK(B59),2,1)) -> 0 | J58: =IF(AND(Zinsusanz="EN",I58<>0),IF(hatSchalttag(B58,IF(I58=2,bis,B59)),1,0),0) -> 0
I59: =IF(B59=B60,0,IF(ISBLANK(B60),2,1)) -> 0 | J59: =IF(AND(Zinsusanz="EN",I59<>0),IF(hatSchalttag(B59,IF(I59=2,bis,B60)),1,0),0) -> 0
I60: 0 | J60: =IF(AND(Zinsusanz="EN",I60<>0),IF(hatSchalttag(B60,IF(I60=2,bis,B61)),1,0),0) -> 0
I61: 0 | J61: =IF(AND(Zinsusanz="EN",I61<>0),IF(hatSchalttag(B61,IF(I61=2,bis,B62)),1,0),0) -> 0
D62: Rundung | H62: =IF(NOT(ISBLANK(B62)),H61+IF(Kontotyp="aktiv",+F62-G62,-F62+G62),"") ->  | L62: =IF(Rundung,H65-H63-L64,0) -> -0.004166666668
A63: =bis -> 2014-12-31 | B63: =bis -> 2014-12-31 | D63: Total | F63: =SUM(F$9:F62) -> 4500 | G63: =SUM(G$9:G62) -> 14500 | H63: =IF(Kontotyp="aktiv",H9+F63-G63,H9-F63+G63) -> 40000 | K63: =SUM(K$9:K62) -> 360 | L63: =SUM(L$9:L62) -> 756.6
D64: Total Zinsbetrag | F64: =IF(L63<0,-L63,"") ->  | G64: =IF(L63>=0,L63,"") -> 756.6 | L64: =SUM(L9:L61) -> 756.6041667
D65: Neuer Saldo | H65: =ROUND((H63+L64)/5,2)*5 -> 40756.6
